bitfinex-derivatives/quotes_SOLF0:USTF0_20250321
["timestamp","ask_amount","ask_price","bid_price","bid_amount"]
[1742567976747,7.8802,126.97,126.96,29.88]
[1742567977141,0.05339834,126.98,126.96,42.73794684]
[1742567977644,0.05339834,126.98,126.96,50.61784684]
[1742567978144,0.05339834,126.98,126.97,7.8796]
[1742567978447,0.05339834,126.98,126.97,20.73754684]
[1742567979646,0.05339834,126.98,126.97,50.61754684]
[1742567980049,0.05339834,126.98,126.97,37.7596]
[1742567982353,0.05339834,126.98,126.97,50.61754684]
[1742567983148,12.91134518,126.98,126.96,7.8799]
[1742567983348,12.91134518,126.98,126.95,29.88]
[1742567983548,0.05339834,126.98,126.97,12.85794684]
[1742567983746,7.8766,127.02,126.97,12.85794684]
[1742567983939,7.8766,127.02,126.99,12.85794684]
[1742567984139,12.85794684,127.02,126.98,50.61664684]
[1742567984344,7.8772,127.01,126.98,50.61664684]
[1742567984851,7.93497736,127.01,126.98,50.66920201]
[1742567985348,0.05777736,127.01,126.98,50.66920201]
[1742567985550,0.05777736,127.01,126.99,12.85794684]
[1742567986251,0.05777736,127.01,127.0,29.88]
[1742567986443,7.93487736,127.01,127.0,29.88]
[1742567987553,12.9157242,127.01,126.99,29.88]
[1742567987750,12.85794684,127.0,126.99,29.88]
[1742567987947,12.85794684,127.0,126.93,259.84]
[1742567988152,12.85794684,126.96,126.93,259.84]
[1742567988654,12.85794684,126.98,126.94,12.85794684]
[1742567988958,7.8795,126.98,126.95,42.73794684]
[1742567989149,0.05725543,126.97,126.95,29.88]
[1742567991249,0.05725543,126.97,126.95,37.7608]
[1742567991752,0.05725543,126.97,126.93,279.94825843]
[1742567991753,0.05725543,126.97,126.93,259.84]
[1742567991944,0.05725543,126.97,126.91,29.88]
[1742567992149,20.10825843,126.99,126.92,29.88]
[1742567992359,0.0598816,126.95,126.92,49.98825843]
[1742567993051,0.0598816,126.95,126.94,7.8815]
[1742567995351,0.0598816,126.95,126.94,27.98975843]
[1742567996048,0.0598816,126.95,126.94,7.8815]
[1742567997363,0.0598816,126.95,126.93,12.1371]
[1742567998057,0.0598816,126.95,126.88,280.04825843]
[1742567998253,0.0598816,126.95,126.89,29.88]
[1742567998861,7.8821,126.93,126.9,7.8836]
[1742567999654,7.8821,126.93,126.91,7.8832]
[1742567999850,7.8821,126.93,126.92,29.9]
[1742568000056,7.94161817,126.93,126.92,29.9]
[1742568000365,7.8833,126.92,126.88,284.32125843]
[1742568000660,0.05951817,126.93,126.89,29.88]
[1742568000863,0.05951817,126.93,126.88,272.0979]
[1742568001163,0.05951817,126.93,126.9,29.88]
[1742568001455,20.1677766,126.93,126.9,29.88]
[1742568001971,0.05951817,126.93,126.9,29.88]
[1742568002455,0.05951817,126.93,126.9,37.7636]
[1742568003051,7.94191817,126.93,126.9,29.88]
[1742568003458,0.05951817,126.93,126.9,29.88]
[1742568003653,0.05951817,126.93,126.88,284.32125843]
[1742568003654,0.05951817,126.93,126.88,259.94]
[1742568003854,0.05951817,126.93,126.84,20.10825843]
[1742568003855,20.10825843,126.92,126.87,29.9]
[1742568004059,20.10825843,126.92,126.88,29.9]
[1742568004364,0.05356025,126.91,126.88,29.9]
[1742568004563,0.05356025,126.91,126.86,7.8861]
[1742568004758,7.8857,126.88,126.87,29.9]
[1742568005165,0.0575137,126.89,126.87,29.9]
[1742568005562,0.0575137,126.89,126.85,29.9]
[1742568005967,0.0575137,126.89,126.85,37.7867]
[1742568006266,43.55080571,126.97,126.88,20.10825843]
[1742568006562,45.58010571,126.97,126.91,20.10825843]
[1742568006860,45.58010571,126.97,126.92,29.9]
[1742568007065,43.55080571,126.97,126.93,20.10825843]
[1742568007567,0.0571222,126.96,126.94,0.06022344]
[1742568007767,0.0571222,126.96,126.95,29.9]
[1742568009062,0.0571222,126.96,126.95,50.00825843]
[1742568009362,43.55080571,126.97,126.95,310.04825843]
[1742568009568,43.36579633,127.03,126.95,314.43575843]
[1742568009766,51.24219633,127.03,126.99,7.878]
[1742568009970,43.36579633,127.03,127.0,29.9]
[1742568010269,7.8771,127.01,127.0,29.9]
[1742568010568,7.8771,127.01,127.0,29.95331579]
[1742568010869,43.41995806,127.03,127.0,29.95331579]
[1742568011369,7.8771,127.01,127.0,29.95331579]
[1742568012467,7.8768,127.02,127.0,29.95331579]
[1742568012870,0.05416173,127.03,127.0,29.95331579]
[1742568013061,7.8771,127.01,127.0,29.95331579]
[1742568013867,0.05416173,127.03,126.97,20.10825843]
[1742568013868,7.879,126.98,126.97,29.88]
[1742568014366,20.10825843,127.02,126.95,260.04]
[1742568014568,20.10825843,127.02,126.97,29.88]
[1742568015169,0.05578121,127.01,126.98,0.0579857]
[1742568016265,7.8784,126.99,126.98,0.0579857]
[1742568017673,7.879,126.98,126.97,29.88]
[1742568017876,0.05578121,127.01,126.96,29.88]
[1742568018065,20.10825843,127.02,126.96,29.88]
[1742568018266,7.8796,126.97,126.96,29.88]
[1742568020375,0.05795939,126.98,126.96,29.88]
[1742568020877,7.8796,126.97,126.96,29.88]
[1742568022480,7.8796,126.97,126.95,260.04]
[1742568022776,7.8796,126.97,126.96,29.88]
[1742568022979,0.05795939,126.98,126.96,29.88]
[1742568023479,0.05795939,126.98,126.96,37.7598]
[1742568024782,7.93695939,126.98,126.96,37.7598]
[1742568024978,0.05795939,126.98,126.96,37.7598]
[1742568025278,0.05795939,126.98,126.96,29.88]
[1742568026569,0.05795939,126.98,126.97,7.8796]
[1742568027181,0.05795939,126.98,126.96,44.2101]
[1742568027686,0.05795939,126.98,126.96,36.3302]
[1742568027879,7.93705939,126.98,126.96,36.3302]
[1742568028080,0.05795939,126.98,126.96,34.1711]
[1742568028270,0.05795939,126.98,126.96,29.88]
[1742568028784,0.05795939,126.98,126.97,29.88]
[1742568028991,0.05795939,126.98,126.95,260.04]
[1742568029285,7.93715939,126.98,126.96,29.88]
[1742568029584,7.93715939,126.98,126.97,29.88]
[1742568029985,0.05795939,126.98,126.97,29.88]
[1742568031980,0.05795939,126.98,126.95,260.04]
[1742568032173,7.8796,126.97,126.96,29.88]
[1742568034776,7.93725939,126.98,126.96,29.88]
[1742568035391,7.8796,126.97,126.96,29.88]
[1742568035783,20.16621782,126.98,126.95,260.04]
[1742568035984,20.16621782,126.98,126.95,289.92]
[1742568036383,0.05795939,126.98,126.95,289.92]
[1742568037090,7.8802,126.96,126.95,289.92]
[1742568038087,7.8824,126.93,126.9,259.98]
[1742568038287,20.10825843,126.98,126.91,29.88]
[1742568038483,6.1063,126.99,126.93,7.8817]
[1742568038685,0.0502271,126.96,126.94,29.88]
[1742568039093,0.0502271,126.96,126.94,37.7615]
[1742568039690,7.9305271,126.96,126.94,29.88]
[1742568041599,0.0502271,126.96,126.94,29.88]
[1742568041985,7.8808,126.95,126.94,29.88]
[1742568043590,7.9308271,126.96,126.94,29.88]
[1742568043991,0.0502271,126.96,126.94,29.88]
[1742568044700,0.0502271,126.96,126.94,37.7612]
[1742568045097,0.0502271,126.96,126.94,50.63067534]
[1742568045500,7.9307271,126.96,126.94,42.74947534]
[1742568045697,7.9307271,126.96,126.94,29.88]
[1742568046702,7.8808,126.95,126.94,29.88]
[1742568047002,0.0502271,126.96,126.94,29.88]
[1742568047395,7.9308271,126.96,126.94,37.7614]
[1742568049306,7.9308271,126.96,126.94,50.63087534]
[1742568049797,0.0502271,126.96,126.95,7.8808]
[1742568050504,0.0502271,126.96,126.95,20.75027534]
[1742568050695,0.0502271,126.96,126.94,29.88]
[1742568050696,0.0502271,126.96,126.94,50.63057534]
[1742568051092,7.9304271,126.96,126.94,42.74947534]
[1742568051803,12.86947534,126.95,126.93,289.86]
[1742568052202,12.91970244,126.96,126.93,289.86]
[1742568052398,0.0502271,126.96,126.93,289.86]
[1742568052793,7.8808,126.95,126.93,289.86]
[1742568053007,0.0502271,126.96,126.93,302.72947534]
[1742568053197,0.0502271,126.96,126.93,289.86]
[1742568053397,7.8808,126.95,126.93,289.86]
[1742568053797,0.0502271,126.96,126.93,302.72947534]
[1742568054005,0.0502271,126.96,126.94,20.75077534]
[1742568054407,0.0502271,126.96,126.95,7.8808]
[1742568055698,0.0502271,126.96,126.95,20.75027534]
[1742568057200,32.68335402,127.02,126.95,20.75027534]
[1742568057404,32.68335402,127.02,126.99,20.74747534]
[1742568057604,32.68335402,127.02,127.0,29.88]
[1742568057795,40.56015402,127.02,127.0,37.7576]
[1742568057994,32.68335402,127.02,127.0,29.88]
[1742568058510,12.86947534,127.01,126.93,259.98]
[1742568058712,12.86947534,126.96,126.94,29.88]
[1742568059405,7.8808,126.95,126.94,29.88]
[1742568060207,12.92806033,126.96,126.94,29.86]
[1742568060513,0.05858499,126.96,126.94,29.86]
[1742568060707,0.05858499,126.96,126.95,12.86947534]
[1742568061097,0.05858499,126.96,126.94,37.7411]
[1742568061711,0.05858499,126.96,126.94,37.7415]
[1742568062411,2.25363978,126.95,126.94,37.7415]
[1742568063013,2.25363978,126.95,126.94,29.86]
[1742568063211,2.25363978,126.95,126.93,259.98]
[1742568063408,2.25363978,126.94,126.93,259.98]
[1742568063601,10.13513978,126.94,126.93,259.98]
[1742568064213,10.13513978,126.94,126.93,289.84]
[1742568065413,2.25363978,126.94,126.93,289.84]
[1742568066115,2.25363978,126.94,126.93,259.98]
[1742568066412,2.25363978,126.94,126.93,289.84]
[1742568066823,10.13513978,126.94,126.93,289.84]
[1742568068519,2.25363978,126.94,126.93,289.84]
[1742568068921,2.25363978,126.94,126.93,297.7221]
[1742568069623,2.25363978,126.94,126.93,317.8298559]
[1742568070523,2.25363978,126.94,126.93,297.7221]
[1742568071133,0.05858499,126.96,126.95,7.8808]
[1742568073122,0.05858499,126.96,126.94,7.8811]
[1742568073322,0.05858499,126.96,126.94,29.86]
[1742568073830,7.93918499,126.96,126.94,29.86]
[1742568074031,0.05858499,126.96,126.93,259.98]
[1742568075320,20.1077559,126.95,126.93,289.84]
[1742568076032,7.8815,126.94,126.93,289.84]
[1742568076333,7.8815,126.94,126.93,29.86]
[1742568076520,7.8843,126.9,126.88,260.0]
[1742568076721,7.8843,126.9,126.89,29.86]
[1742568076932,7.93802433,126.9,126.89,29.86]
[1742568080523,7.8846,126.89,126.88,260.0]
[1742568080727,7.8846,126.89,126.88,289.88]
[1742568081133,7.93802433,126.9,126.88,289.88]
[1742568081337,0.05372433,126.9,126.88,289.88]
[1742568081729,0.05372433,126.9,126.89,7.8846]
[1742568081923,0.05372433,126.9,126.88,289.88]
[1742568082535,0.05372433,126.9,126.89,7.8846]
[1742568083240,45.77383451,126.96,126.92,7.8826]
[1742568083535,43.57853451,126.96,126.93,29.88]
[1742568084538,7.8809,126.95,126.93,29.93559174]
[1742568086039,0.05324192,126.96,126.93,29.93559174]
[1742568086742,7.93374192,126.96,126.93,29.93559174]
[1742568086931,0.05324192,126.96,126.93,29.93559174]
[1742568087443,0.05324192,126.96,126.94,7.8814]
[1742568087739,0.05324192,126.96,126.93,29.93559174]
[1742568088639,7.8813,126.95,126.93,29.93559174]
[1742568089235,7.8815,126.94,126.93,0.05559174]
[1742568089430,7.8815,126.94,126.93,29.91559174]
[1742568092239,7.881,126.95,126.93,29.91559174]
[1742568092938,0.05324192,126.96,126.93,29.91559174]
[1742568094042,18.16515389,126.96,126.93,29.91559174]
[1742568094336,7.8846,126.89,126.88,260.0]
[1742568094537,7.8846,126.89,126.88,289.86]
[1742568094841,18.11191197,126.9,126.87,29.86]
[1742568095640,18.16332323,126.9,126.87,29.86]
[1742568096040,18.16332323,126.9,126.84,7.8873]
[1742568096241,18.16332323,126.9,126.85,29.86]
[1742568096541,18.16332323,126.9,126.86,29.86]
[1742568096542,7.8858,126.87,126.86,29.86]
[1742568096740,18.16332323,126.9,126.86,29.86]
[1742568097333,7.8858,126.87,126.86,29.86]
[1742568103842,7.8877,126.84,126.83,260.06]
[1742568104044,7.8877,126.84,126.83,289.94]
[1742568104538,7.94460155,126.85,126.83,289.94]
[1742568104841,0.05720155,126.85,126.83,289.94]
[1742568105339,7.94430155,126.85,126.84,29.88]
[1742568106035,0.05720155,126.85,126.83,260.06]
[1742568106239,141.98376388,126.95,126.83,289.94]
[1742568106439,29.00709246,126.94,126.86,18.11191197]
[1742568106635,29.00709246,126.94,126.87,29.88]
[1742568107343,0.05970246,126.92,126.89,0.05936256]
[1742568107843,18.17161443,126.92,126.89,0.05936256]
[1742568108341,7.884,126.9,126.89,0.05936256]
[1742568112152,7.8857,126.88,126.83,260.06]
[1742568112443,7.8857,126.88,126.85,29.88]
[1742568113353,7.94102715,126.88,126.85,37.767]
[1742568115649,7.94102715,126.88,126.85,7.887]
[1742568115853,7.94102715,126.88,126.85,37.767]
[1742568116855,0.05532715,126.88,126.84,29.88]
[1742568117561,7.8865,126.86,126.84,29.88]
[1742568118358,7.8861,126.87,126.84,37.7676]
[1742568118761,0.05532715,126.88,126.84,29.88]
[1742568119852,0.05532715,126.88,126.86,7.8864]
[1742568120252,7.94082715,126.88,126.85,7.8869]
[1742568120454,0.05532715,126.88,126.85,7.8869]
[1742568120856,7.8858,126.87,126.84,37.7674]
[1742568122664,7.8858,126.87,126.85,7.887]
[1742568122864,7.94082715,126.88,126.85,7.887]
[1742568123162,0.05532715,126.88,126.84,29.88]
[1742568123857,7.8861,126.87,126.84,37.7673]
[1742568124162,7.8861,126.87,126.84,29.88]
[1742568124566,7.94082715,126.88,126.85,7.8868]
[1742568124761,7.94082715,126.88,126.84,29.88]
[1742568125261,0.05532715,126.88,126.84,29.88]
[1742568125967,7.8868,126.86,126.84,29.88]
[1742568126266,0.05532715,126.88,126.84,29.88]
[1742568126465,7.8863,126.87,126.84,37.7673]
[1742568126662,7.8863,126.87,126.81,4.1533]
[1742568126663,18.13194491,126.87,126.81,4.1533]
[1742568126860,18.13194491,126.85,126.82,29.88]
[1742568127054,18.18928321,126.85,126.8,29.88]
[1742568127254,18.13194491,126.83,126.79,260.2]
[1742568127454,18.13194491,126.83,126.79,290.08]
[1742568127653,7.94580242,126.82,126.79,297.9707]
[1742568127957,0.05660242,126.82,126.79,297.9707]
[1742568128765,7.8899,126.81,126.79,297.9707]
[1742568129162,0.05660242,126.82,126.74,284.68594491]
[1742568129363,18.13194491,126.83,126.75,29.88]
[1742568129667,7.94816512,126.79,126.76,29.88]
[1742568129963,0.05686512,126.79,126.75,7.8929]
[1742568130165,7.8919,126.78,126.77,29.88]
[1742568130567,0.05686512,126.79,126.74,270.1363]
[1742568130764,0.05686512,126.79,126.75,29.88]
[1742568130765,18.18881003,126.79,126.75,29.88]
[1742568131167,18.18881003,126.79,126.73,2.2031]
[1742568131363,18.18881003,126.79,126.74,29.88]
[1742568131562,7.8931,126.76,126.74,29.88]
[1742568131763,18.13194491,126.79,126.72,134.84200154]
[1742568131958,18.13194491,126.79,126.71,131.91161277]
[1742568131959,0.05166134,126.76,126.71,2.1946]
[1742568132157,0.05166134,126.76,126.72,29.88]
[1742568132762,7.8933,126.75,126.72,29.88]
[1742568133464,7.8941,126.74,126.72,29.88]
[1742568133770,0.05166134,126.76,126.72,29.88]
[1742568134069,7.94466134,126.76,126.72,29.88]
[1742568134270,7.94466134,126.76,126.72,37.775]
[1742568134466,0.05166134,126.76,126.72,37.775]
[1742568134770,0.05166134,126.76,126.72,39.883]
[1742568135963,7.94436134,126.76,126.72,39.883]
[1742568137864,7.94436134,126.76,126.73,7.8945]
[1742568138073,0.05166134,126.76,126.73,7.8945]
[1742568139470,0.05166134,126.76,126.72,39.8829]
[1742568140066,0.05166134,126.76,126.73,7.8944]
[1742568140571,7.94476134,126.76,126.73,7.8944]
[1742568140771,0.05166134,126.76,126.73,7.8944]
[1742568141461,7.8934,126.75,126.72,39.8828]
[1742568141870,0.05166134,126.76,126.72,31.988]
[1742568142070,7.94476134,126.76,126.72,31.988]
[1742568142375,0.05166134,126.76,126.73,7.8942]
[1742568142766,5.45741354,126.76,126.73,7.8942]
[1742568143273,0.05166134,126.76,126.73,7.8942]
[1742568143462,0.05166134,126.76,126.72,39.8828]
[1742568144071,7.8936,126.75,126.72,39.8828]
[1742568144270,0.05166134,126.76,126.72,31.988]
[1742568145171,7.8934,126.75,126.72,39.8827]
[1742568146274,7.8934,126.75,126.73,7.8944]
[1742568146979,7.8934,126.75,126.72,39.8829]
[1742568148083,7.894,126.74,126.72,39.8829]
[1742568148381,0.05166134,126.76,126.72,39.8829]
[1742568148582,7.8938,126.75,126.72,39.8829]
[1742568148980,7.8938,126.75,126.73,7.8944]
[1742568149175,7.94456134,126.76,126.72,31.988]
[1742568149376,0.05166134,126.76,126.73,7.8941]
[1742568150482,7.94496134,126.76,126.73,7.8941]
[1742568150781,0.05166134,126.76,126.73,7.8941]
[1742568151481,7.8935,126.75,126.73,7.8941]
[1742568151989,7.8942,126.74,126.72,39.883]
[1742568153984,19.51809639,126.75,126.73,7.8944]
[1742568154381,11.62449639,126.75,126.72,31.988]
[1742568154581,7.8939,126.74,126.72,39.8829]
[1742568154780,11.62449639,126.75,126.72,39.8829]
[1742568155577,7.94476134,126.76,126.72,43.61249639]
[1742568155777,0.05166134,126.76,126.72,43.61249639]
[1742568156185,0.05166134,126.76,126.72,31.988]
[1742568156186,7.8936,126.75,126.72,31.988]
[1742568156588,7.894,126.74,126.72,39.8828]
[1742568157283,0.05166134,126.76,126.72,43.61249639]
[1742568157787,0.05166134,126.76,126.74,7.8936]
[1742568157788,7.94466134,126.76,126.74,7.8936]
[1742568158081,0.05166134,126.76,126.75,29.88]
[1742568158483,0.05166134,126.76,126.75,37.7733]
[1742568159587,0.05166134,126.76,126.75,49.39779639]
[1742568159774,11.62449639,126.81,126.78,7.8912]
[1742568160086,7.8902,126.8,126.78,29.88]
[1742568160481,11.62449639,126.81,126.78,29.88]
[1742568160681,19.51439639,126.81,126.78,29.88]
[1742568160887,11.62449639,126.83,126.8,7.8897]
[1742568161088,0.05383299,126.81,126.8,7.8897]
[1742568161276,424.86671824,126.85,126.78,29.88]
[1742568161480,0.0509563,126.82,126.79,0.05038422]
[1742568161682,7.8898,126.81,126.79,0.05038422]
[1742568161881,7.8898,126.81,126.79,29.93038422]
[1742568162688,0.0509563,126.82,126.79,29.93038422]
[1742568162899,0.0509563,126.82,126.79,0.05038422]
[1742568162900,23.56511662,126.81,126.79,0.05038422]
[1742568163093,7.8927,126.76,126.75,290.3]
[1742568163685,18.14218373,126.79,126.75,290.3]
[1742568164286,7.8927,126.76,126.75,290.3]
[1742568165185,0.05257537,126.78,126.75,290.3]
[1742568165186,7.8924,126.77,126.75,290.3]
[1742568165994,0.05257537,126.78,126.75,290.3]
[1742568165995,7.8927,126.76,126.75,29.88]
[1742568166289,7.8927,126.76,126.73,7.8942]
[1742568166290,5.4244644,126.76,126.73,7.8942]
[1742568166477,18.14218373,126.79,126.73,37.7742]
[1742568166682,0.05548148,126.76,126.73,37.7742]
[1742568167078,7.8936,126.75,126.73,37.7742]
[1742568167891,0.05548148,126.76,126.73,29.88]
[1742568168291,0.05548148,126.76,126.73,37.7742]
[1742568168793,7.94848148,126.76,126.73,37.7742]
[1742568169294,5.43534744,126.75,126.74,7.8939]
[1742568169693,7.65811067,126.75,126.74,7.8939]
[1742568170396,0.05548148,126.76,126.75,7.8933]
[1742568170895,0.05548148,126.76,126.73,48.02218373]
[1742568170896,7.8911,126.79,126.77,7.8918]
[1742568171091,7.8911,126.79,126.77,37.7718]
[1742568171092,5.44095168,126.78,126.77,37.7718]
[1742568171393,5.44095168,126.78,126.77,29.88]
[1742568171592,13.33235168,126.78,126.77,29.88]
[1742568174894,5.44095168,126.78,126.77,29.88]
[1742568175298,5.44095168,126.78,126.77,37.772]
[1742568176699,0.05881579,126.79,126.78,7.8914]
[1742568176897,5.51224793,126.79,126.77,29.88]
[1742568177094,5.45343214,126.78,126.77,29.88]
[1742568177600,5.45343214,126.78,126.77,37.772]
[1742568178203,5.45343214,126.78,126.77,29.88]
[1742568179499,5.45343214,126.78,126.77,37.772]
[1742568179898,5.45343214,126.78,126.77,29.88]
[1742568181301,13.34483214,126.78,126.77,29.88]
[1742568181701,24.96120064,126.78,126.77,29.88]
[1742568182507,27.17993113,126.78,126.77,29.88]
[1742568183307,5.45343214,126.78,126.77,29.88]
[1742568183509,7.67232619,126.78,126.77,29.88]
[1742568183809,7.67232619,126.78,126.77,49.3883685]
[1742568184709,55.19490301,126.85,126.77,309.7563685]
[1742568184901,55.19490301,126.85,126.81,11.6163685]
[1742568185109,19.5043685,126.84,126.82,29.86]
[1742568185502,11.6163685,126.84,126.82,29.86]
[1742568185701,11.6163685,126.85,126.82,29.86]
[1742568185904,45.71663451,126.86,126.82,29.86]
[1742568185905,0.05948479,126.84,126.83,7.8879]
[1742568186108,0.05948479,126.84,126.83,19.5042685]
[1742568187203,0.05948479,126.84,126.83,7.8879]
[1742568188517,0.05948479,126.84,126.82,55.92728151]
[1742568188903,0.05948479,126.84,126.82,29.91011126]
[1742568189105,0.05948479,126.84,126.82,37.79901126]
[1742568190506,50.13417025,126.9,126.82,48.03868151]
[1742568190708,50.13417025,126.9,126.82,47.98857025]
[1742568190908,20.27417025,126.9,126.83,260.32]
[1742568191814,7.8859,126.87,126.85,0.058284]
[1742568192113,7.8859,126.87,126.85,29.918284]
[1742568192311,0.05208342,126.88,126.85,29.918284]
[1742568192715,7.93778342,126.88,126.85,29.918284]
[1742568193102,0.05208342,126.88,126.85,29.918284]
[1742568193411,0.05208342,126.88,126.86,18.12857025]
[1742568194515,7.93728342,126.88,126.86,18.12857025]
[1742568194710,7.93728342,126.88,126.85,37.805284]
[1742568195007,0.05208342,126.88,126.85,29.918284]
[1742568195413,0.05208342,126.88,126.85,0.058284]
[1742568195711,0.05208342,126.88,126.85,29.898284]
[1742568196107,7.8864,126.86,126.85,29.898284]
[1742568196712,13.25007162,126.86,126.85,0.058284]
[1742568197013,15.44893196,126.86,126.85,0.058284]
[1742568197711,7.8877,126.84,126.83,260.32]
[1742568198013,13.25137162,126.84,126.83,260.32]
[1742568198315,7.8877,126.84,126.83,260.32]
[1742568198615,10.0859849,126.84,126.83,260.32]
[1742568201311,15.44950805,126.84,126.83,260.32]
[1742568203611,15.44950805,126.84,126.82,29.89064138]
[1742568203612,7.56180805,126.84,126.82,0.05064138]
[1742568203807,5.36210147,126.83,126.78,260.26]
[1742568204119,5.36222724,126.82,126.79,29.84]
[1742568204321,2.1982849,126.83,126.78,260.26]
[1742568204621,7.56109063,126.82,126.79,29.84]
[1742568204806,2.1982849,126.81,126.79,29.84]
[1742568205011,2.1982849,126.81,126.79,29.89690285]
[1742568205411,0.06027996,126.82,126.79,29.89690285]
[1742568205815,7.94957996,126.82,126.79,37.78740285]
[1742568206317,0.06027996,126.82,126.8,7.8898]
[1742568206519,0.06027996,126.82,126.79,48.0254731]
[1742568207319,0.06027996,126.82,126.81,18.12857025]
[1742568207621,7.8867,126.86,126.81,18.12857025]
[1742568207818,5.36362702,126.85,126.82,29.84]
[1742568208114,7.8867,126.86,126.83,7.888]
[1742568208311,18.12857025,126.9,126.83,7.888]
[1742568208512,5.36293592,126.89,126.82,29.84]
[1742568208716,25.74270965,126.88,126.85,0.05893764]
[1742568208918,7.8864,126.86,126.85,0.05893764]
[1742568209120,15.44796193,126.86,126.85,0.05893764]
[1742568209622,15.44796193,126.86,126.85,29.89893764]
[1742568210220,7.56156193,126.86,126.85,29.89893764]
[1742568211416,2.19862601,126.86,126.85,37.78603764]
[1742568211618,2.19862601,126.86,126.85,29.89893764]
[1742568211813,0.05257747,126.88,126.85,29.89893764]
[1742568212222,0.05257747,126.88,126.86,18.12857025]
[1742568212926,0.05257747,126.88,126.87,7.8858]
[1742568213522,24.59857025,126.95,126.86,18.12857025]
[1742568213722,7.8827,126.93,126.86,18.12857025]
[1742568214025,5.36568925,126.92,126.9,7.8836]
[1742568214220,5.36568925,126.91,126.9,7.8836]
[1742568214419,5.36568925,126.91,126.9,297.9836]
[1742568214615,0.0499652,126.92,126.9,297.9836]
[1742568214921,7.9328652,126.92,126.9,290.1]
[1742568215927,13.25094569,126.91,126.9,290.1]
[1742568217822,13.25094569,126.91,126.9,260.26]
[1742568218126,13.25094569,126.91,126.9,290.08]
[1742568220722,23.49621594,126.91,126.86,29.82]
[1742568220920,18.12857025,126.91,126.86,29.82]
[1742568221122,5.36608761,126.9,126.86,29.82]
[1742568221323,5.36608761,126.89,126.86,29.82]
[1742568221522,7.8858,126.87,126.86,29.82]
[1742568222317,7.8864,126.86,126.85,0.05727359]
[1742568222523,7.8864,126.86,126.85,29.87727359]
[1742568222722,0.05354308,126.88,126.85,29.87727359]
[1742568222923,13.25520239,126.87,126.85,29.87727359]
[1742568223127,7.8863,126.87,126.85,29.87727359]
[1742568224323,7.8863,126.87,126.85,37.76427359]
[1742568224520,7.93904308,126.88,126.85,29.87727359]
[1742568224725,0.05354308,126.88,126.86,7.8861]
[1742568224922,0.05354308,126.88,126.85,29.87727359]
[1742568225327,0.05354308,126.88,126.87,7.8858]
[1742568226326,7.8837,126.91,126.88,7.8847]
[1742568226525,5.37390036,126.9,126.89,29.82]
[1742568226834,7.56595473,126.9,126.89,29.82]
[1742568227234,7.56595473,126.9,126.89,37.7046]
[1742568227735,7.56595473,126.9,126.89,29.82]
[1742568227926,15.44995473,126.9,126.89,29.82]
[1742568228533,15.45796675,126.9,126.89,29.82]
[1742568229837,7.57396675,126.9,126.89,29.82]
[1742568230439,2.19205437,126.9,126.89,297.8646]
[1742568230733,0.05425959,126.91,126.89,289.98]
[1742568230933,22.34487025,126.97,126.89,289.98]
[1742568231241,5.3843633,126.96,126.89,289.98]
[1742568231536,5.3843633,126.95,126.91,7.883]
[1742568231737,5.3843633,126.94,126.92,29.82]
[1742568231935,5.3843633,126.93,126.92,37.7024]
[1742568232136,5.3843633,126.93,126.92,37.75519353]
[1742568232635,5.3843633,126.93,126.92,29.87279353]
[1742568233738,13.2664633,126.93,126.92,29.87279353]
[1742568234631,13.2664633,126.93,126.92,0.05279353]
[1742568234831,7.884,126.9,126.89,289.98]
[1742568235031,13.2683633,126.9,126.89,289.98]
[1742568236130,5.3843633,126.9,126.89,289.98]
[1742568237138,13.2683633,126.9,126.89,289.98]
[1742568238036,5.3843633,126.9,126.89,289.98]
[1742568238633,13.2683633,126.9,126.89,289.98]
[1742568239738,13.26478095,126.9,126.89,289.98]
[1742568241132,5.38078095,126.9,126.89,289.98]
[1742568241439,13.26573018,126.9,126.89,289.98]